bitfinex/quotes_ETHUSD_20220212
["timestamp","ask_amount","ask_price","bid_price","bid_amount"]
[1644701784977,9.736e-05,2900.1,2899.6,6.6]
[1644701785179,9.736e-05,2900.1,2900.0,0.03129795]
[1644701785376,9.736e-05,2900.1,2900.0,0.20369795]
[1644701785979,0.03325933,2900.6,2900.0,0.20369795]
[1644701786180,0.03325933,2900.6,2899.6,8.3942]
[1644701786181,0.03325933,2900.6,2899.6,6.7723]
[1644701786382,0.03325933,2900.6,2900.0,0.03129795]
[1644701786779,0.03325933,2900.6,2900.5,0.03129795]
[1644701787181,0.03320228,2900.6,2900.5,0.20359795]
[1644701787381,0.03320228,2900.6,2900.5,0.03129795]
[1644701787588,0.03320228,2900.6,2900.5,0.33129795]
[1644701787843,0.03320228,2900.6,2900.5,0.95592674]
[1644701788437,4.71973218,2902.1,2900.6,3.45]
[1644701788638,1.8964,2902.2,2901.2,0.03129795]
[1644701788840,1.8964,2902.2,2901.1,0.03129795]
[1644701789041,1.8964,2902.2,2900.5,0.92462879]
[1644701789237,0.1723,2902.2,2901.5,0.03129795]
[1644701789638,0.1723,2902.2,2901.1,0.03129795]
[1644701789837,0.00959901,2902.0,2901.6,0.03129795]
[1644701790237,0.00959901,2902.0,2901.5,0.15190615]
[1644701790238,0.00959901,2902.0,2901.8,0.03129795]
[1644701790438,0.00959901,2902.0,2901.2,1.3221]
[1644701790640,0.00959901,2902.0,2901.2,0.2838]
[1644701790840,0.22639993,2902.3,2901.2,0.2838]
[1644701791039,0.0095993,2901.7,2901.2,0.2838]
[1644701791684,0.0095993,2901.7,2900.6,0.52078758]
[1644701791884,0.0095993,2901.7,2900.3,0.07323431]
[1644701792073,0.1723,2901.6,2900.3,0.07323431]
[1644701792371,0.00191379,2900.7,2900.3,0.07323431]
[1644701793570,0.00960057,2900.6,2900.3,0.07323431]
[1644701794374,0.00191379,2900.7,2900.3,0.07323431]
[1644701794770,0.00960063,2900.6,2900.3,0.07323431]
[1644701795621,0.00191379,2900.7,2900.3,0.07323431]
[1644701796425,0.00191379,2900.7,2899.8,0.31842214]
[1644701796626,0.00191379,2900.7,2899.8,0.06842214]
[1644701797031,0.00293364,2900.6,2899.8,0.06842214]
[1644701797930,0.00293364,2900.6,2899.8,0.73780102]
[1644701798231,0.00960841,2900.3,2899.8,0.06842214]
[1644701799168,0.00293364,2900.6,2899.8,0.06842214]
[1644701799571,0.00960842,2900.2,2899.8,0.06842214]
[1644701799865,0.00960842,2900.2,2899.9,0.56869396]
[1644701800367,0.00293364,2900.6,2899.9,0.56869396]
[1644701800770,0.00960842,2900.2,2899.9,1.04099396]
[1644701801774,0.15783963,2900.6,2899.9,1.04099396]
[1644701801972,0.00960842,2900.2,2899.9,1.16869396]
[1644701802372,0.00960842,2900.2,2899.9,2.16869396]
[1644701802574,0.00960842,2900.2,2899.9,1.16869396]
[1644701802844,0.00190246,2900.5,2899.9,1.50829396]
[1644701803047,0.00190246,2900.5,2899.9,5.35794396]
[1644701803048,0.00960842,2900.2,2899.9,5.35794396]
[1644701803245,0.60022634,2902.1,2900.0,0.3]
[1644701803440,3.5,2902.2,2900.2,0.01202435]
[1644701803442,4.96638742,2902.0,2900.2,0.01202435]
[1644701803638,4.96638742,2902.0,2900.3,0.411]
[1644701803639,1.46638742,2901.9,2900.3,0.411]
[1644701803838,1.46638742,2901.9,2900.3,0.711]
[1644701804139,3.5,2901.8,2900.7,0.25]
[1644701804442,0.22639993,2902.3,2900.5,0.3]
[1644701804443,1.46638742,2901.7,2900.5,0.3]
[1644701804645,3.5,2902.2,2900.6,0.1723]
[1644701804944,0.22639993,2902.3,2900.6,0.1723]
[1644701804945,1.46616973,2902.1,2900.6,0.1723]
[1644701805149,1.46616973,2902.0,2900.8,1.72303]
[1644701805344,0.97260179,2902.9,2900.8,1.72303]
[1644701805345,1.46616973,2901.9,2900.9,0.6589746]
[1644701805547,0.1723,2903.0,2901.2,4.3662]
[1644701805548,0.60022634,2903.0,2901.2,4.3662]
[1644701805747,0.80030179,2903.2,2901.3,0.1721]
[1644701805748,1.46579606,2902.9,2901.3,0.1721]
[1644701805945,0.1723,2903.2,2901.3,0.1721]
[1644701805946,0.1723,2903.2,2901.6,0.0287658]
[1644701806142,0.60022634,2903.8,2902.0,1.72226]
[1644701806143,1.46557609,2903.1,2902.0,1.72226]
[1644701806343,3.5,2903.7,2902.0,1.72226]
[1644701806344,1.46557609,2903.0,2902.2,0.57549343]
[1644701806586,4.27232634,2903.7,2902.9,0.54420688]
[1644701806587,3.5,2903.7,2902.9,0.54420688]
[1644701806781,5.0,2903.5,2902.9,0.54420688]
[1644701806981,1.46562855,2903.4,2902.9,0.54420688]
[1644701807182,1.46562855,2903.3,2902.9,0.54420688]
[1644701807385,4.10022634,2904.1,2902.9,0.54420688]
[1644701807588,4.96546992,2904.0,2902.9,0.54420688]
[1644701807786,1.46546992,2903.9,2902.9,0.54420688]
[1644701807986,1.46546992,2903.9,2902.2,1.25]
[1644701807987,0.00961037,2903.2,2902.2,1.25]
[1644701808185,1.46546992,2903.1,2902.2,0.25]
[1644701808384,1.63756992,2903.1,2902.2,0.55]
[1644701808585,1.46546992,2903.0,2902.2,0.55]
[1644701808787,5.0,2903.4,2902.1,0.1721]
[1644701808788,0.1721,2903.3,2902.1,0.1721]
[1644701808985,1.46563029,2903.2,2902.7,0.5909762]
[1644701809187,0.0096109,2902.8,2902.7,0.5909762]
[1644701809986,0.22639993,2903.7,2902.7,0.5909762]
[1644701810188,1.46553658,2903.6,2902.7,0.5909762]
[1644701810427,0.00961078,2902.9,2902.7,0.5909762]
[1644701810628,0.00961078,2902.9,2901.7,0.04999999]
[1644701810930,0.1721,2902.8,2902.2,0.01556116]
[1644701811128,0.00961078,2902.9,2901.7,0.03757418]
[1644701811327,0.1721,2902.9,2901.7,0.03757418]
[1644701811528,0.0789237,2903.0,2901.7,0.03757418]
[1644701811728,0.00961107,2902.6,2902.5,0.69458137]
[1644701811927,0.00961107,2902.6,2901.7,0.03757418]
[1644701812529,0.0789237,2903.0,2901.7,0.03757418]
[1644701812732,0.00961148,2902.3,2901.7,0.03757418]
[1644701813331,0.00961148,2902.3,2901.8,1.43183625]
[1644701813529,0.00961148,2902.3,2901.8,1.73183625]
[1644701813732,0.0789237,2903.0,2901.8,1.73183625]
[1644701813932,0.00928717,2902.2,2901.8,0.87050625]
[1644701814173,0.0789237,2903.0,2901.9,2.85]
[1644701814372,0.0789237,2903.0,2902.0,21.62123]
[1644701814571,0.00179952,2903.4,2902.3,1.72202]
[1644701814970,0.00179952,2903.4,2902.4,0.411]
[1644701815274,0.00179952,2903.4,2902.6,1.72204]
[1644701815470,0.07883616,2902.7,2902.6,2.13304]
[1644701815673,0.07883616,2902.7,2902.6,2.82168853]
[1644701815878,0.07883616,2902.7,2902.6,0.68864853]
[1644701817076,0.07883616,2902.7,2902.6,0.98864853]
[1644701819125,0.00961089,2902.8,2902.6,1.16074853]
[1644701819328,0.00961089,2902.8,2902.6,0.98864853]
[1644701819725,0.01242581,2903.8,2902.6,0.98864853]
[1644701819926,0.01242581,2903.8,2902.7,0.1721]
[1644701820134,0.00961084,2902.8,2902.7,0.1721]
[1644701820933,0.01242581,2903.8,2902.7,0.1721]
[1644701821131,0.01242581,2903.8,2903.4,0.63416292]
[1644701821330,5.0,2904.1,2903.4,0.63416292]
[1644701821578,0.1721,2904.8,2903.4,0.63416292]
[1644701821778,5.0,2904.4,2903.4,0.63416292]
[1644701822381,5.0,2903.5,2903.4,0.63416292]
[1644701822581,5.0,2903.5,2902.7,0.25]
[1644701822582,0.5841,2903.4,2902.7,0.25]
[1644701822778,0.5841,2903.4,2902.6,0.06080405]
[1644701822780,5.0,2903.1,2902.6,0.06080405]
[1644701822981,3.68443931,2903.3,2902.6,0.04780405]
[1644701822982,3.57271468,2903.0,2902.6,0.04780405]
[1644701823184,5.0,2903.0,2902.6,0.04780405]
[1644701823682,0.00961072,2902.9,2902.7,0.54727214]
[1644701823880,0.54371072,2903.4,2902.7,0.54727214]
[1644701824079,0.1721,2903.9,2902.7,0.54727214]
[1644701824281,4.84880952,2904.5,2902.7,0.84727214]
[1644701824282,5.0,2904.5,2902.7,0.84727214]
[1644701824483,5.0,2904.5,2902.7,1.01937214]
[1644701824484,0.1721,2904.4,2902.7,1.01937214]
[1644701824780,0.1721,2904.4,2904.0,0.52194855]
[1644701824999,1.04098778,2903.7,2903.2,0.25]
[1644701825182,1.04098778,2903.7,2903.3,0.50449465]
[1644701825446,1.04098778,2903.7,2903.2,0.1721]
[1644701825649,1.04098778,2903.7,2902.8,0.411]
[1644701825850,1.04098778,2903.7,2902.6,0.29780405]
[1644701826048,1.04098778,2903.7,2902.6,0.04780405]
[1644701826049,5.0,2903.4,2902.6,0.04780405]
[1644701826246,0.1721,2903.3,2902.6,0.04780405]
[1644701826448,3.68795355,2903.6,2902.7,0.61294026]
[1644701826449,5.0,2903.4,2902.7,0.61294026]
[1644701826651,1.04098778,2903.7,2902.6,0.04780405]
[1644701826652,3.5,2903.3,2902.6,0.03380405]
[1644701826855,3.5,2903.3,2902.6,0.01380405]
[1644701826856,5.0,2902.8,2902.6,0.01380405]
[1644701827061,0.18470146,2902.7,2901.8,0.25]
[1644701827251,0.18470146,2902.7,2900.7,1.1825]
[1644701827252,5.0,2901.9,2901.1,0.25]
[1644701827450,5.0,2901.9,2900.4,1.1715]
[1644701827451,5.0,2901.5,2900.4,1.1715]
[1644701827651,0.1723,2901.9,2901.1,0.54557373]
[1644701827652,5.1723,2901.9,2901.1,0.54557373]
[1644701828050,5.0,2901.3,2901.1,0.54557373]
[1644701828454,5.0,2901.7,2901.1,0.54557373]
[1644701828650,0.1723,2902.1,2901.1,0.54557373]
[1644701828851,5.1723,2902.1,2901.1,0.54557373]
[1644701829069,5.0,2902.1,2901.1,1.40729373]
[1644701829270,0.01242581,2902.2,2901.1,1.40729373]
[1644701829468,0.01242581,2902.2,2901.1,0.54557373]
[1644701829872,5.0,2902.0,2901.5,0.00961841]
[1644701830072,5.0,2901.8,2901.5,0.00961841]
[1644701830269,5.0,2902.1,2901.5,0.00961841]
[1644701830673,5.0,2902.1,2901.1,0.84557373]
[1644701830872,5.0,2902.1,2901.7,0.00961818]
[1644701831076,0.01242581,2902.2,2901.7,1.818e-05]
[1644701831278,5.0,2901.8,2901.7,1.818e-05]
[1644701831482,5.0,2901.8,2900.7,0.25]
[1644701831483,6.7723,2901.7,2900.7,0.25]
[1644701831678,6.7723,2901.7,2898.2,2.461]
[1644701831679,5.01220755,2900.8,2899.0,0.25]
[1644701831880,5.0,2900.2,2899.0,0.25]
[1644701832073,5.0,2900.2,2899.1,0.1724]
[1644701832278,5.0,2900.2,2899.8,0.66038326]
[1644701832474,0.1724,2900.7,2899.1,0.1724]
[1644701832676,0.1724,2900.7,2899.1,1.03459]
[1644701833135,3.6724,2901.4,2899.1,21.20559]
[1644701833334,5.0,2900.9,2899.4,0.0162]
[1644701833531,0.01242581,2902.2,2899.1,1.44559]
[1644701833532,5.0,2900.8,2899.5,0.411]
[1644701833739,5.0,2900.8,2900.1,0.60934263]
[1644701833932,5.0,2900.5,2899.5,0.5833]
[1644701834132,0.0128574,2901.3,2899.5,0.1723]
[1644701834331,0.0128574,2901.3,2899.3,0.1723]
[1644701834332,0.1723,2901.2,2899.3,0.1723]
[1644701834532,5.0,2900.4,2899.2,0.1724]
[1644701834732,0.1723,2901.2,2900.3,0.00335823]
[1644701834933,5.0,2900.4,2900.3,5.823e-05]
[1644701835134,6.0176,2900.4,2900.3,5.823e-05]
[1644701835732,6.0176,2900.4,2899.6,0.25]
[1644701835932,6.0176,2900.4,2899.1,0.007]
[1644701835933,5.0,2899.7,2899.1,0.007]
[1644701836132,5.0,2899.2,2898.6,0.25]
[1644701836339,5.0,2898.8,2898.6,0.25]
[1644701836579,5.0,2898.8,2897.7,0.1724]
[1644701836580,5.0,2898.8,2897.7,1.11254]
[1644701836786,3.5,2899.4,2899.3,8.051e-05]
[1644701836983,5.411,2899.4,2899.3,8.051e-05]
[1644701837182,5.5834,2899.4,2899.3,8.051e-05]
[1644701837382,9.37757832,2899.4,2899.3,8.051e-05]
[1644701837782,9.32675058,2899.4,2899.3,8.051e-05]
[1644701837982,9.37635437,2899.4,2899.3,8.051e-05]
[1644701838382,5.5834,2899.4,2899.3,8.051e-05]
[1644701838581,5.411,2899.4,2899.3,8.051e-05]
[1644701838987,5.0,2899.4,2899.3,8.051e-05]
[1644701839185,5.1724,2899.6,2899.3,8.051e-05]
[1644701839382,0.08819997,2899.9,2899.3,8.051e-05]
[1644701839383,5.0,2899.8,2899.3,8.051e-05]
[1644701839587,0.24541621,2900.1,2899.3,8.051e-05]
[1644701839784,0.24541621,2900.1,2899.4,0.58491913]
[1644701839785,0.07301621,2900.1,2899.4,0.58491913]
[1644701840084,0.02301621,2900.1,2899.4,1.83061913]
[1644701840530,0.02301621,2900.1,2899.4,2.83061913]
[1644701840738,0.02301621,2900.1,2900.0,0.53811286]
[1644701842137,1.72397,2902.4,2900.0,0.53811286]
[1644701842138,0.009621,2901.2,2900.0,1.52581286]
[1644701842339,0.009621,2901.2,2900.1,0.4724]
[1644701842539,0.009621,2901.2,2900.2,0.411]
[1644701842737,0.009621,2901.2,2900.3,0.1723]
[1644701842939,0.009621,2901.2,2900.4,0.411]
[1644701843136,5.0,2901.8,2901.0,0.65823942]
[1644701843336,5.0,2901.8,2900.5,0.1723]
[1644701843337,0.0096224,2901.2,2900.5,0.1723]
[1644701843537,0.0096224,2901.2,2900.6,0.411]
[1644701844176,3.6723,2902.4,2900.6,0.411]
[1644701844177,5.0,2901.3,2900.6,0.711]
[1644701844374,3.6723,2902.4,2900.9,0.56015782]
[1644701844580,3.6723,2902.4,2900.5,0.1723]
[1644701844581,5.0,2901.0,2900.5,0.1723]
[1644701844780,0.00906483,2901.2,2900.5,0.1723]
[1644701844781,0.02131907,2901.2,2900.5,0.1723]
[1644701844980,5.0,2900.6,2900.5,0.1723]
[1644701845282,5.0,2900.6,2900.2,0.00906807]
[1644701845484,5.0,2900.5,2898.7,3.71269]
[1644701845680,5.0,2900.3,2900.2,0.00906731]
[1644701846282,5.0,2900.3,2900.2,6.731e-05]
[1644701846581,5.0,2900.3,2899.5,0.25]
[1644701846784,0.01271521,2900.7,2898.7,0.86231]
[1644701846785,5.0,2899.9,2898.7,0.86231]
[1644701846983,5.0,2900.4,2898.8,1.97436]
[1644701847182,0.17382707,2901.2,2899.0,0.86218]
[1644701847183,5.0,2900.7,2899.0,0.86218]
[1644701847384,5.0,2900.7,2900.1,0.70592362]
[1644701847596,5.06070343,2901.2,2900.1,0.70592362]
[1644701847824,5.06070343,2901.2,2900.1,1.56782362]
[1644701848223,0.00910919,2900.7,2900.2,0.3]
[1644701848424,0.00910919,2900.7,2900.6,0.64170712]
[1644701849029,0.06070343,2901.2,2900.6,1.82530712]
[1644701849226,0.06070343,2901.2,2900.6,2.42530712]
[1644701849427,0.06070343,2901.2,2900.6,3.42530712]
[1644701849428,0.00910951,2900.8,2900.6,3.42530712]
[1644701850230,0.06001294,2901.2,2900.6,5.14852712]
[1644701850428,0.06001294,2901.2,2900.7,0.1723]
[1644701850726,0.00909509,2900.8,2900.7,0.1723]
[1644701850928,0.00909509,2900.8,2900.7,0.5833]
[1644701851226,5.0,2901.9,2900.7,0.5833]
[1644701851430,0.1723,2902.4,2900.7,23.85046]
[1644701851671,3.5,2903.0,2900.9,1.7232]
[1644701851672,3.6723,2903.0,2900.9,1.7232]
[1644701851872,5.0,2902.4,2901.0,0.5833]
[1644701852076,5.1723,2902.4,2901.0,0.411]
[1644701852272,0.1723,2902.4,2901.9,0.64023514]
[1644701852472,3.5,2903.0,2901.9,0.64023514]
[1644701852473,5.0,2902.2,2901.9,0.64023514]
[1644701852673,5.0,2902.2,2901.9,0.94023514]
[1644701853074,0.00628109,2902.3,2901.9,0.94023514]
[1644701853475,0.00628109,2902.3,2901.9,0.3]
[1644701853675,0.00628109,2902.3,2901.4,0.411]
[1644701853877,5.0,2902.4,2901.4,0.711]
[1644701854475,3.75782173,2902.7,2901.4,0.711]
[1644701854476,5.0,2902.2,2901.8,0.68558722]
[1644701854678,5.0,2902.4,2901.8,0.68558722]
[1644701854877,5.0,2902.4,2901.8,0.98558722]
[1644701855176,5.0,2902.4,2901.8,0.68558722]
[1644701855424,0.00962353,2902.2,2901.4,0.411]
[1644701855624,0.00962353,2902.2,2901.4,0.711]
[1644701855824,0.00962353,2902.2,2901.4,1.011]
[1644701855825,5.0,2902.0,2901.4,1.011]
[1644701856025,5.0,2902.0,2901.4,0.711]
[1644701856225,5.0,2902.0,2901.4,1.011]
[1644701856425,0.009624,2901.8,2901.4,1.011]
[1644701857235,0.009624,2901.8,2901.2,2.38247715]
[1644701857236,5.009624,2901.8,2901.2,2.38247715]
[1644701857436,5.0,2901.8,2901.2,0.78247715]
[1644701857634,0.00962411,2901.7,2901.3,0.411]
[1644701858631,5.0,2902.0,2901.3,0.411]
[1644701858834,0.00962423,2901.6,2901.3,0.411]
[1644701859069,0.00962423,2901.6,2901.4,0.86143]
[1644701859274,0.00962423,2901.6,2901.5,0.3]
[1644701859472,0.00962423,2901.6,2901.5,0.6]
[1644701859874,4.85,2902.0,2901.5,0.6]
[1644701860071,0.00962337,2901.7,2901.5,0.6]
[1644701860276,0.00962337,2901.7,2901.6,0.55360065]
[1644701861074,4.85,2902.0,2901.6,0.55360065]
[1644701861370,4.85,2902.0,2901.7,0.86132]
[1644701861371,0.00902462,2901.8,2901.7,0.86132]
[1644701861572,0.00902462,2901.8,2901.6,0.55360065]
[1644701861776,5.0,2901.7,2901.6,0.55360065]
[1644701861977,5.00136631,2901.7,2901.6,0.55360065]
[1644701862175,0.00136631,2901.7,2901.6,0.55360065]
[1644701862576,0.00136631,2901.7,2901.5,0.00119808]
[1644701862826,5.0,2901.6,2901.5,0.00119808]
[1644701863022,5.0,2901.6,2901.5,9.808e-05]
[1644701863221,5.0,2901.6,2901.4,0.01131592]
[1644701863821,0.17366631,2901.7,2901.4,0.01131592]
[1644701863822,4.95,2901.5,2901.4,0.01131592]
[1644701864622,4.8,2901.5,2901.4,0.01131592]
[1644701865422,0.00875826,2901.6,2901.4,0.01131592]
[1644701865822,4.8,2901.5,2901.4,0.01131592]
[1644701866022,0.00136631,2901.7,2901.4,0.01131592]
[1644701866222,0.0087582,2901.6,2901.4,0.01131592]
[1644701866422,0.0087582,2901.6,2901.5,0.58205912]
[1644701866687,4.8087582,2901.6,2901.4,0.01131592]
[1644701867091,4.8,2901.6,2901.5,0.00111951]
[1644701867287,4.80852182,2901.6,2901.5,0.00111951]
[1644701867691,0.00852182,2901.6,2901.5,0.00111951]
[1644701867888,0.00852182,2901.6,2901.5,0.68934736]
[1644701868088,0.00136631,2901.7,2901.5,0.68934736]
[1644701868089,0.00078813,2901.7,2901.5,0.68934736]
[1644701868291,0.00078813,2901.7,2901.5,2.02554736]
[1644701868493,0.00852951,2901.7,2901.5,2.49784736]
[1644701868688,4.85,2902.0,2901.6,0.411]
[1644701869188,4.85,2902.0,2901.6,1.411]
[1644701869689,4.85,2902.0,2901.7,0.8613]
[1644701869890,4.85,2902.0,2901.7,0.3]
[1644701870090,0.1723,2903.5,2901.7,1.16125]
[1644701870343,4.8,2903.1,2901.8,2.43351]
[1644701870533,3.5,2903.6,2901.8,2.32251]
[1644701870534,4.70400957,2903.2,2901.8,2.32251]
[1644701870733,3.5,2903.6,2902.8,0.65358759]
[1644701871034,4.70400957,2902.9,2902.8,0.65358759]
[1644701871436,4.65400957,2902.9,2902.8,0.65358759]
[1644701872841,4.65400957,2902.9,2902.4,0.411]
[1644701873137,3.85,2902.8,2902.0,0.1722]
[1644701873338,3.85,2902.8,2902.1,0.411]
[1644701873339,4.65400957,2902.7,2902.1,0.411]
[1644701873841,4.65400957,2902.7,2902.2,0.52663436]
[1644701874470,0.01224401,2903.5,2902.2,0.82663436]
[1644701874671,0.00910211,2902.6,2902.2,0.82663436]
[1644701875475,4.60400957,2903.3,2902.2,0.82663436]
[1644701875672,4.60400957,2903.3,2902.3,0.411]
[1644701875871,0.00910216,2902.5,2902.3,0.411]
[1644701876779,4.60400957,2903.3,2902.6,0.0013216]
[1644701876780,0.00119608,2902.8,2902.6,0.0013216]
[1644701876976,0.00119608,2902.8,2902.6,0.52584254]
[1644701877378,0.00119608,2902.8,2902.6,0.82584254]
[1644701878035,4.60400957,2903.2,2902.6,0.82584254]
[1644701878233,1.04098778,2903.7,2902.6,0.82584254]
[1644701878234,0.00627958,2902.8,2902.6,0.82584254]
[1644701878434,0.00627958,2902.8,2902.7,0.411]
[1644701878734,0.00627958,2902.8,2902.7,0.361]
[1644701879136,4.60400957,2903.6,2902.7,0.361]
[1644701879435,0.00627958,2902.9,2902.7,0.361]
[1644701880337,4.60400957,2903.3,2902.8,0.64969484]
[1644701880537,0.00627957,2902.9,2902.8,0.64969484]
[1644701881577,4.60400957,2903.3,2902.8,0.64969484]
[1644701881775,1.04098778,2903.7,2902.8,0.64969484]
[1644701881975,4.59028988,2903.2,2902.7,0.03194545]
[1644701882175,4.59028988,2903.4,2902.7,0.44294545]
[1644701882375,1.04098778,2903.7,2902.7,0.44426417]
[1644701882376,4.59028988,2903.0,2902.7,0.44426417]
[1644701882975,4.59028988,2903.0,2902.7,0.03326417]
[1644701883179,4.59028988,2903.2,2902.8,0.51831387]
[1644701883977,0.1721,2903.6,2902.8,0.51831387]
[1644701884175,4.59028988,2903.0,2902.8,0.51831387]
[1644701884377,4.59028988,2903.0,2902.7,0.03326417]
[1644701884576,4.59028988,2902.8,2902.7,0.03326417]
[1644701884783,4.59028988,2902.8,2902.1,0.1721]
[1644701884784,4.59028988,2902.8,2901.8,0.25]
[1644701885081,0.01256379,2902.9,2902.0,20.67857]
[1644701885082,4.59028988,2902.1,2902.0,20.67857]
[1644701885330,1.5639137,2901.8,2900.5,0.03757419]
[1644701885529,0.01279148,2901.2,2900.6,0.53818231]
[1644701885734,4.59028988,2900.7,2900.6,0.53818231]
[1644701886329,4.59028988,2900.9,2900.6,0.53818231]
[1644701886734,4.59028988,2900.7,2900.0,0.1723]
[1644701886935,3.6723,2901.7,2900.5,0.00964349]
[1644701886936,0.1723,2900.8,2900.5,0.00964349]
[1644701887135,4.76258988,2900.6,2900.5,0.00964349]
[1644701887333,4.59028988,2900.6,2900.5,0.00964349]
[1644701887533,4.59028988,2900.6,2899.9,0.25]
[1644701887734,4.59028988,2900.6,2900.0,0.60246634]
[1644701887934,4.1331081,2901.7,2900.0,0.60246634]
[1644701887935,4.59028988,2900.7,2900.4,0.00964361]
[1644701888337,4.59028988,2900.5,2900.4,0.00964361]
[1644701888733,4.59028988,2900.5,2900.0,0.60246634]
[1644701888934,5.1723,2901.6,2900.0,0.60246634]
[1644701888935,4.59028988,2900.6,2900.0,0.60246634]
[1644701889175,4.59028988,2900.6,2900.3,0.00964373]
[1644701889376,0.13819996,2901.6,2900.3,0.00964373]
[1644701889377,4.59028988,2900.4,2900.3,0.00964373]
[1644701889974,4.59028988,2900.4,2900.0,0.60246634]
[1644701890179,0.1723,2901.5,2899.0,7.48]
[1644701890180,4.59028988,2900.1,2899.0,7.48]
[1644701890381,0.10062578,2900.3,2899.8,0.03858115]
[1644701890575,4.59028988,2899.9,2899.8,0.03858115]
[1644701890977,4.59028988,2899.9,2899.8,8.115e-05]
[1644701891180,4.59028988,2899.9,2898.8,0.70411925]
[1644701891181,6.6,2899.8,2898.8,0.70411925]
[1644701891382,6.6,2899.8,2897.9,0.58993996]
[1644701891383,4.59028988,2898.9,2898.5,0.25]
[1644701891582,4.59028988,2898.6,2897.7,0.8]
[1644701891783,4.59028988,2897.8,2897.7,0.8]
[1644701892384,4.59028988,2898.2,2897.7,0.8]
[1644701892584,4.59028988,2898.6,2897.7,0.8]
[1644701892823,4.59028988,2898.6,2897.8,0.411]
[1644701893424,4.59028988,2898.6,2898.4,0.51628224]
[1644701893925,4.59028988,2898.6,2897.7,0.8]
[1644701893926,4.59028988,2898.6,2898.1,0.00962174]
[1644701894127,5.0,2899.5,2898.1,0.00962174]
[1644701894128,4.59028988,2898.2,2898.1,0.00962174]
[1644701894826,4.59028988,2898.2,2897.7,0.8]
[1644701894827,4.59028988,2898.2,2897.7,1.36653451]
[1644701895028,4.59028988,2897.8,2897.7,1.36653451]
[1644701895328,4.59028988,2898.0,2897.7,1.36653451]
[1644701895728,4.59028988,2898.5,2897.7,1.36653451]
[1644701895930,4.59028988,2898.7,2897.7,1.36653451]
[1644701896132,4.59028988,2898.7,2897.8,0.411]
[1644701896327,4.59028988,2898.7,2898.5,0.65844812]
[1644701896773,0.00119165,2898.6,2898.5,0.65844812]
[1644701896975,9.165e-05,2898.6,2898.5,0.3]
[1644701897372,9.165e-05,2898.6,2898.3,0.411]
[1644701897573,9.165e-05,2898.6,2898.4,0.18202134]
[1644701897776,0.05345078,2898.6,2898.4,0.18202134]
[1644701897973,0.05345078,2898.6,2898.4,0.00962134]
[1644701898176,0.05345078,2898.6,2898.4,0.5787106]
[1644701898177,4.59374066,2898.6,2898.4,0.5787106]
[1644701898576,0.05345078,2898.6,2898.4,0.56908926]
[1644701898783,0.05345078,2898.6,2898.4,0.57842206]
[1644701899675,0.05345078,2898.6,2898.4,0.56908926]
[1644701899874,0.05345078,2898.6,2898.4,0.57842206]
[1644701900731,0.05345078,2898.6,2898.4,0.56908926]
[1644701901125,0.05345078,2898.6,2898.4,0.57842206]
[1644701901327,0.05345078,2898.6,2898.4,0.87842206]
[1644701901928,0.05345078,2898.6,2898.4,0.86908926]
[1644701902129,0.05449457,2898.6,2898.5,0.00141944]
[1644701902932,3.544e-05,2898.6,2898.5,0.00141944]
[1644701903132,3.544e-05,2898.6,2898.5,0.58481944]
[1644701903333,3.544e-05,2898.6,2898.5,2.83961944]
[1644701903533,3.544e-05,2898.6,2898.5,1.83961944]
[1644701903733,3.544e-05,2898.6,2898.5,2.83961944]
[1644701904378,3.544e-05,2898.6,2898.5,2.53961944]
[1644701904671,3.544e-05,2898.6,2898.5,0.41241944]
[1644701904872,3.544e-05,2898.6,2898.5,0.58481944]
[1644701905071,3.544e-05,2898.6,2898.5,0.41241944]
[1644701906481,3.544e-05,2898.6,2898.5,0.71241944]
[1644701907078,0.01238705,2899.6,2898.5,0.71241944]
[1644701907079,0.00088183,2899.2,2898.5,0.71344325]
[1644701907277,4.54028988,2899.0,2898.5,1.01344325]
[1644701907476,4.54117171,2899.2,2898.5,1.01344325]
[1644701908125,4.54117171,2899.2,2898.6,0.52218457]
[1644701908530,0.1724,2899.8,2898.7,6.6]
[1644701908829,0.00628566,2899.9,2898.9,0.86205]
[1644701909032,0.00628566,2899.9,2898.8,1.86223]
[1644701909034,0.00628566,2899.9,2898.8,1.0]
[1644701909230,0.13819996,2900.5,2898.6,0.99458457]
[1644701909231,5.31059996,2900.5,2898.6,0.99458457]
[1644701909429,5.31059996,2900.5,2898.6,1.10558457]
[1644701909430,0.1724,2899.8,2898.6,1.10558457]
[1644701909629,0.00911136,2899.9,2899.3,0.00911353]
[1644701909835,0.1724,2899.8,2899.3,0.00911353]
[1644701910031,0.00911136,2899.9,2899.3,0.00911353]
[1644701910229,0.1724,2899.7,2899.3,0.00911353]
[1644701910434,0.1724,2899.8,2898.6,0.411]
[1644701910632,0.1724,2900.4,2898.9,0.411]
[1644701910837,0.0091118,2899.9,2899.6,0.67201595]
[1644701911686,0.1724,2900.2,2899.6,0.67201595]
[1644701911884,0.1724,2900.4,2899.6,0.67201595]
[1644701912178,0.1724,2900.4,2899.6,0.68112914]
[1644701912179,0.00911212,2899.9,2899.6,0.68112914]
[1644701912378,0.00911212,2899.9,2899.6,0.00911319]
[1644701912980,0.1724,2900.2,2899.2,0.411]
[1644701913282,0.13819996,2900.5,2899.2,0.411]
[1644701913283,0.00922035,2899.9,2899.6,0.00922143]
[1644701913481,0.00922035,2899.9,2899.7,0.53133284]
[1644701913680,0.00922035,2899.9,2899.7,0.83133284]
[1644701914081,0.13819996,2900.5,2899.7,0.83133284]
[1644701914284,0.1724,2900.8,2899.7,1.13133284]
[1644701914285,0.00566417,2899.9,2899.7,1.13133284]
[1644701914483,6.417e-05,2899.9,2899.8,0.411]
[1644701914884,0.1724,2901.6,2900.0,19.76]
[1644701915083,1.5639137,2901.8,2900.1,0.711]
[1644701915333,1.5639137,2901.8,2900.2,0.411]
[1644701915536,1.5639137,2901.8,2901.3,0.56229726]
[1644701915738,1.5639137,2901.8,2901.0,0.411]
[1644701915739,1.00203405,2901.2,2901.0,0.411]
[1644701915938,1.00203405,2901.2,2901.1,0.6469512]
[1644701916738,1.00203405,2901.2,2901.0,0.411]
[1644701916739,1.00203405,2901.2,2900.6,0.411]